bitfinex-derivatives/quotes_SOLF0:USTF0_20250124
["timestamp","ask_amount","ask_price","bid_price","bid_amount"]
[1737744062754,3.7921,263.61,263.6,0.02496545]
[1737744064653,14.37438991,263.63,263.47,2.5809]
[1737744064654,3.7928,263.56,263.47,2.5809]
[1737744064849,16.91438991,263.63,263.47,2.5809]
[1737744065050,14.37438991,263.58,263.47,2.5809]
[1737744065258,14.37438991,263.58,263.47,1.2711]
[1737744065858,0.02765479,263.55,263.5,0.02819125]
[1737744067057,3.7934,263.53,263.5,0.02819125]
[1737744069961,0.02765479,263.55,263.5,0.02819125]
[1737744070458,0.02765479,263.55,263.52,3.7933]
[1737744071161,0.02765479,263.55,263.5,0.02819125]
[1737744071353,0.02765479,263.55,263.54,3.7931]
[1737744072458,0.02765479,263.55,263.5,0.02819125]
[1737744072658,0.02765479,263.55,263.52,3.7933]
[1737744073056,0.02765479,263.55,263.5,0.02819125]
[1737744073557,14.4020447,263.55,263.5,0.02819125]
[1737744073757,3.7934,263.52,263.5,0.02819125]
[1737744074251,14.4020447,263.55,263.5,0.02819125]
[1737744074456,3.7932,263.54,263.5,0.02819125]
[1737744074857,3.7934,263.52,263.5,0.02819125]
[1737744079459,14.4020447,263.55,263.5,0.02819125]
[1737744079460,18.1951447,263.55,263.51,3.7935]
[1737744079957,3.7931,263.54,263.5,3.82189125]
[1737744080358,14.4020447,263.55,263.5,0.02819125]
[1737744080659,3.7933,263.53,263.5,0.02819125]
[1737744081261,14.37438991,263.51,263.41,2.5466]
[1737744081658,3.7938,263.5,263.45,3.7943]
[1737744082164,14.37438991,263.51,263.45,3.7943]
[1737744082357,3.7939,263.49,263.45,3.82261517]
[1737744082659,3.7939,263.49,263.46,3.7943]
[1737744083357,3.81967479,263.5,263.47,3.7941]
[1737744083760,0.02597479,263.5,263.47,3.7941]
[1737744086159,0.02597479,263.5,263.48,3.794]
[1737744087464,0.02597479,263.5,263.45,0.02831517]
[1737744087765,0.02597479,263.5,263.49,3.7938]
[1737744088464,0.02597479,263.5,263.47,3.794]
[1737744088763,0.02597479,263.5,263.45,0.02831517]
[1737744089059,8.9898667,263.59,263.45,0.02831517]
[1737744089261,8.9898667,263.59,263.43,8.9898667]
[1737744089461,8.9898667,263.59,263.47,3.794]
[1737744089661,8.9898667,263.59,263.43,8.9898667]
[1737744090364,0.02703995,263.54,263.48,0.02676543]
[1737744090764,12.7822667,263.59,263.55,3.7929]
[1737744091166,12.2885057,263.63,263.47,8.9898667]
[1737744091367,8.9898667,263.67,263.62,3.792]
[1737744091557,8.9898667,263.67,263.51,8.9898667]
[1737744091558,8.9898667,263.67,263.52,1.2773]
[1737744091962,0.02479663,263.62,263.57,0.02614631]
[1737744093067,0.02479663,263.62,263.61,3.7921]
[1737744093461,8.9898667,263.67,263.57,0.02614631]
[1737744093867,8.9898667,263.67,263.63,3.7918]
[1737744094865,0.02904823,263.68,263.62,0.02573189]
[1737744095970,8.9898667,263.63,263.62,0.02573189]
[1737744096468,0.02904823,263.68,263.62,0.02573189]
[1737744096674,0.02904823,263.68,263.67,3.7912]
[1737744098669,0.02904823,263.68,263.65,3.7914]
[1737744099072,8.9898667,263.67,263.63,2.633]
[1737744099372,8.9898667,263.67,263.62,0.02573189]
[1737744099574,8.9898667,263.63,263.62,0.02573189]
[1737744100275,12.7816667,263.63,263.62,0.02573189]
[1737744101868,12.7816667,263.63,263.57,3.7925]
[1737744102076,8.9898667,263.58,263.38,8.9898667]
[1737744102272,8.9898667,263.64,263.43,5.0345]
[1737744102476,8.9898667,263.5,263.43,1.2398]
[1737744102779,3.7933,263.53,263.43,1.2398]
[1737744103171,0.02524461,263.51,263.45,0.02616561]
[1737744103773,0.02524461,263.51,263.46,3.7942]
[1737744103972,0.02524461,263.51,263.45,0.02616561]
[1737744104374,0.02524461,263.51,263.48,3.7939]
[1737744104874,0.02524461,263.51,263.45,0.02616561]
[1737744105781,0.02524461,263.51,263.49,3.7938]
[1737744107479,2.56,263.55,263.45,0.02616561]
[1737744107675,12.7818667,263.62,263.45,0.02616561]
[1737744107882,8.9898667,263.62,263.46,8.9898667]
[1737744108380,8.9898667,263.62,263.47,1.28]
[1737744108580,12.7818667,263.62,263.56,3.7928]
[1737744108772,0.02626403,263.57,263.56,3.7928]
[1737744111286,0.02626403,263.57,263.52,0.02603977]
[1737744111486,8.9898667,263.54,263.52,0.02603977]
[1737744113685,8.9898667,263.54,263.5,3.50501977]
[1737744114885,8.9898667,263.54,263.49,0.02441924]
[1737744115384,9.01387359,263.54,263.49,0.02441924]
[1737744115580,3.7933,263.53,263.49,0.02441924]
[1737744115783,3.7933,263.53,263.49,3.81821924]
[1737744117087,12.80697359,263.54,263.49,0.02441924]
[1737744117281,0.02400689,263.54,263.51,3.7934]
[1737744117883,0.02400689,263.54,263.53,3.7933]
[1737744121684,0.02400689,263.54,263.49,0.02441924]
[1737744121685,3.7934,263.53,263.49,3.81821924]
[1737744121883,0.02400689,263.54,263.49,0.02441924]
[1737744122782,9.01387359,263.54,263.49,0.02441924]
[1737744123290,12.80707359,263.54,263.49,0.02441924]
[1737744123790,12.80707359,263.54,263.52,3.7934]
[1737744123791,0.02400689,263.54,263.52,3.7934]
[1737744123987,0.02400689,263.54,263.49,0.02441924]
[1737744125185,8.9898667,263.68,263.49,9.01428594]
[1737744125389,8.9898667,263.68,263.53,8.9898667]
[1737744125585,2.54,263.71,263.53,8.9898667]
[1737744125792,3.791,263.69,263.53,8.9898667]
[1737744126095,2.54,263.71,263.53,8.9898667]
[1737744126395,0.02617255,263.64,263.58,0.02679678]
[1737744128998,0.02617255,263.64,263.59,3.7923]
[1737744129395,0.02617255,263.64,263.6,3.7922]
[1737744129691,0.02617255,263.64,263.58,0.02679678]
[1737744130796,3.7921,263.62,263.58,0.02679678]
[1737744130996,0.02617255,263.64,263.58,0.02679678]
[1737744131497,3.792,263.62,263.58,0.02679678]
[1737744131698,0.02617255,263.64,263.58,0.02679678]
[1737744132199,3.792,263.62,263.58,0.02679678]
[1737744132399,0.02617255,263.64,263.58,0.02679678]
[1737744132599,8.9898667,263.61,263.58,0.02679678]
[1737744132794,3.7924,263.59,263.58,0.02679678]
[1737744133695,11.5098667,263.61,263.46,1.3318]
[1737744133899,8.9898667,263.55,263.46,1.3318]
[1737744134792,0.02465886,263.54,263.48,0.02899449]
[1737744134998,3.81785886,263.54,263.48,0.02899449]
[1737744135702,0.02465886,263.54,263.48,0.02899449]
[1737744136807,8.9898667,263.51,263.48,0.02899449]
[1737744137104,3.7938,263.49,263.48,0.02899449]
[1737744137506,8.9898667,263.51,263.4,3.795]
[1737744137507,3.7945,263.45,263.4,3.795]
[1737744138505,8.9898667,263.47,263.33,1.3221]
[1737744138802,0.02762285,263.45,263.4,0.02578289]
[1737744140298,3.795,263.42,263.4,0.02578289]
[1737744140604,12.7848667,263.42,263.4,0.02578289]
[1737744141901,3.7947,263.43,263.4,0.02578289]
[1737744142203,0.02762285,263.45,263.4,0.02578289]
[1737744142601,0.02762285,263.45,263.4,3.82078289]
[1737744142907,0.02762285,263.45,263.4,0.02578289]
[1737744143500,3.82212285,263.45,263.4,0.02578289]
[1737744143709,0.02762285,263.45,263.4,0.02578289]
[1737744143905,0.02762285,263.45,263.41,3.7949]
[1737744144110,0.02762285,263.45,263.4,0.02578289]
[1737744144514,0.02762285,263.45,263.44,3.7945]
[1737744145012,0.02762285,263.45,263.4,0.02578289]
[1737744145615,0.02762285,263.45,263.41,3.795]
[1737744148122,0.02762285,263.45,263.42,3.7948]
[1737744148416,0.02762285,263.45,263.4,0.02578289]
[1737744151718,3.7945,263.44,263.41,3.795]
[1737744152018,0.02762285,263.45,263.4,0.02578289]
[1737744152817,0.02762285,263.45,263.44,3.7945]
[1737744153119,8.9898667,263.51,263.44,3.7945]
[1737744153420,3.7933,263.53,263.41,2.5124]
[1737744154022,3.7933,263.53,263.48,3.7938]
[1737744154219,8.9898667,263.55,263.41,2.5124]
[1737744154419,0.02829059,263.53,263.48,0.02506832]
[1737744155521,3.7934,263.52,263.48,0.02506832]
[1737744156622,3.7936,263.51,263.48,0.02506832]
[1737744157024,0.02829059,263.53,263.48,0.02506832]
[1737744157223,3.7935,263.52,263.48,0.02506832]
[1737744158125,3.7937,263.51,263.48,0.02506832]
[1737744159623,0.02829059,263.53,263.48,0.02506832]
[1737744161628,5.75245505,263.52,263.48,0.02506832]
[1737744161929,5.75245505,263.52,263.5,3.7936]
[1737744165127,5.75245505,263.52,263.48,0.02506832]
[1737744165328,0.02829059,263.53,263.48,0.02506832]
[1737744165730,0.02829059,263.53,263.52,3.7934]
[1737744168330,5.75245505,263.64,263.63,3.7918]
[1737744168533,9.78737815,263.7,263.58,5.75245505]
[1737744168534,5.75245505,263.67,263.58,5.75245505]
[1737744168833,5.75245505,263.61,263.53,5.75245505]
[1737744169040,5.75245505,263.58,263.53,1.3288]
[1737744169537,5.78122799,263.58,263.57,3.7927]
[1737744169736,5.78122799,263.58,263.53,1.35594566]
[1737744170637,5.78122799,263.58,263.53,5.14904566]
[1737744171236,5.78122799,263.58,263.53,1.35594566]
[1737744171438,5.75245505,263.55,263.53,0.02714566]
[1737744173236,5.78122799,263.58,263.53,3.82034566]
[1737744173939,9.57382799,263.58,263.53,3.82034566]
[1737744174438,5.78122799,263.58,263.53,3.82034566]
[1737744174634,5.78122799,263.58,263.53,0.02714566]
[1737744175237,3.7927,263.57,263.53,0.02714566]
[1737744176737,3.7931,263.54,263.53,0.02714566]
[1737744177140,5.75245505,263.55,263.53,0.02714566]
[1737744177834,0.02877294,263.58,263.53,0.02714566]
[1737744177835,0.02877294,263.58,263.54,5.75245505]
[1737744178141,5.75245505,263.64,263.57,3.7927]
[1737744178340,5.75245505,263.64,263.55,1.284]
[1737744179338,0.02570872,263.62,263.55,1.284]
[1737744180040,3.81780872,263.62,263.55,1.284]
[1737744180441,0.02570872,263.62,263.57,3.7927]
[1737744180642,0.02570872,263.62,263.53,0.02714566]
[1737744181044,3.7924,263.59,263.53,0.02714566]
[1737744181743,3.7927,263.58,263.53,0.02714566]
[1737744181941,0.02570872,263.62,263.53,0.02714566]
[1737744182337,3.7928,263.56,263.53,0.02714566]
[1737744182744,3.793,263.55,263.53,0.02714566]
[1737744183646,3.7931,263.54,263.53,0.02714566]
[1737744184650,2.52,263.55,263.39,1.2608]
[1737744184848,8.98016139,263.5,263.4,3.795]
[1737744185250,3.7943,263.46,263.34,8.98016139]
[1737744185442,3.7943,263.46,263.4,3.7951]
[1737744185942,3.7946,263.44,263.4,0.02841694]
[1737744186349,0.02624742,263.46,263.4,0.02841694]
[1737744186645,0.02624742,263.46,263.4,3.82351694]
[1737744186847,0.02624742,263.46,263.4,0.02841694]
[1737744187242,3.7933,263.53,263.4,0.02841694]
[1737744187549,8.98016139,263.54,263.4,0.02841694]
[1737744188144,12.77326139,263.54,263.4,0.02841694]
[1737744188449,0.02721192,263.5,263.4,0.02841694]
[1737744188649,0.02721192,263.5,263.49,3.7938]
[1737744189149,2.52,263.57,263.47,0.02449432]
[1737744189350,2.52,263.57,263.44,2.5508]
[1737744189551,8.98016139,263.64,263.47,8.98016139]
[1737744189750,3.7922,263.61,263.55,3.7929]
[1737744190052,8.98016139,263.64,263.55,3.7929]
[1737744190250,0.02829915,263.61,263.55,3.81732127]
[1737744191152,3.7923,263.6,263.55,3.81732127]
[1737744193552,3.7925,263.59,263.55,0.02442127]
[1737744194353,8.98016139,263.6,263.55,0.02442127]
[1737744194753,8.98016139,263.56,263.45,1.3403]
[1737744195056,8.98016139,263.52,263.45,1.3403]
[1737744195358,3.7937,263.51,263.45,1.3403]
[1737744195859,3.794,263.49,263.45,0.02902295]
[1737744196054,0.026494,263.51,263.45,0.02902295]
[1737744196254,8.98016139,263.48,263.45,0.02902295]
[1737744196658,3.7941,263.47,263.45,0.02902295]
[1737744197454,8.98016139,263.48,263.45,0.02902295]
[1737744197758,3.7939,263.49,263.45,0.02902295]
[1737744200860,3.7939,263.49,263.44,3.51641295]
[1737744201961,3.7939,263.49,263.44,3.54552152]
[1737744202160,3.794,263.48,263.44,3.54552152]
[1737744204765,0.026494,263.51,263.5,3.7937]
[1737744205063,11.50016139,263.6,263.44,0.02910857]
[1737744205363,2.52,263.6,263.43,8.98016139]
[1737744205564,3.7926,263.58,263.54,3.7931]
[1737744205767,3.7926,263.58,263.43,8.98016139]
[1737744205965,2.52,263.6,263.43,8.98016139]
[1737744206361,0.02817981,263.54,263.49,0.02421088]
[1737744207065,0.02817981,263.54,263.53,3.7933]
[1737744207368,0.02817981,263.54,263.49,0.02421088]
[1737744207666,3.82127981,263.54,263.5,3.7937]
[1737744209367,0.02817981,263.54,263.49,0.02421088]
[1737744209768,3.7922,263.61,263.58,3.7925]
[1737744209965,8.98016139,263.64,263.48,2.5806]
[1737744210169,11.50016139,263.68,263.51,8.98016139]
[1737744210470,3.7916,263.65,263.51,8.98016139]
[1737744210665,8.98016139,263.68,263.51,8.98016139]
[1737744210968,0.02714544,263.61,263.58,3.7924]
[1737744211169,0.02714544,263.61,263.51,8.98016139]
[1737744211368,0.02714544,263.61,263.55,0.02815488]
[1737744211969,0.02714544,263.61,263.57,3.7926]
[1737744212165,0.02714544,263.61,263.55,0.02815488]
[1737744213866,0.02714544,263.61,263.6,3.7922]
[1737744215363,8.98016139,263.72,263.67,3.7912]
[1737744215766,12.77086139,263.72,263.67,3.7912]
[1737744216167,8.98016139,263.72,263.55,8.98016139]
[1737744216370,8.98016139,263.72,263.69,3.7909]
[1737744217070,3.791,263.69,263.68,0.0245039]
[1737744217370,8.98016139,263.72,263.51,8.98016139]
[1737744217571,3.7913,263.67,263.66,0.02794055]
[1737744217763,8.98016139,263.68,263.6,3.7922]
[1737744217967,8.98016139,263.68,263.64,0.02718322]
[1737744218972,3.7916,263.65,263.64,0.02718322]
[1737744219164,8.98016139,263.68,263.49,1.244]
[1737744219368,8.98016139,263.62,263.49,1.244]
[1737744220174,3.7918,263.63,263.58,3.7924]
[1737744220374,0.02743954,263.58,263.49,1.244]
[1737744220864,8.98016139,263.66,263.51,0.02729357]
[1737744221069,8.98016139,263.66,263.51,9.00745496]
[1737744221574,3.7916,263.65,263.6,3.7922]
[1737744221873,3.7916,263.65,263.51,8.98016139]
[1737744222074,3.8172464,263.65,263.6,0.02594472]
[1737744222373,0.0256464,263.65,263.6,0.02594472]
[1737744223573,0.0256464,263.65,263.64,3.7917]
[1737744224568,0.0256464,263.65,263.62,3.7918]
[1737744224971,0.0256464,263.65,263.6,0.02594472]
[1737744226676,3.7921,263.61,263.6,0.02594472]
[1737744230978,3.7919,263.63,263.6,0.02594472]
[1737744231178,0.0256464,263.65,263.6,0.02594472]
[1737744231581,3.792,263.63,263.6,0.02594472]
[1737744232078,0.0256464,263.65,263.6,0.02594472]
[1737744232480,0.0256464,263.65,263.63,3.7918]
[1737744232778,0.0256464,263.65,263.6,0.02594472]
[1737744233376,0.0256464,263.65,263.62,3.7918]
[1737744233576,0.0256464,263.65,263.6,0.02594472]
[1737744233979,0.0256464,263.65,263.62,3.7919]
[1737744234280,0.0256464,263.65,263.6,0.02594472]
[1737744234677,0.0256464,263.65,263.61,3.7921]
[1737744235882,3.8171464,263.65,263.61,3.7921]
[1737744236485,3.8171464,263.65,263.6,0.02594472]
[1737744236486,3.8171464,263.65,263.62,3.7919]
[1737744237682,3.8171464,263.65,263.6,0.02594472]
[1737744237683,0.0256464,263.65,263.64,3.7917]
[1737744238180,0.0256464,263.65,263.6,0.02594472]
[1737744238384,0.0256464,263.65,263.62,3.7918]
[1737744238785,0.0256464,263.65,263.6,0.02594472]
[1737744238980,0.0256464,263.65,263.64,3.7917]
[1737744239183,0.0256464,263.65,263.6,0.02594472]
[1737744239387,0.0256464,263.65,263.61,3.792]
[1737744239589,0.0256464,263.65,263.6,0.02594472]
[1737744240096,0.0256464,263.65,263.63,3.7918]
[1737744240290,3.7917,263.64,263.6,0.02594472]
[1737744241092,3.7917,263.64,263.61,3.792]
[1737744241292,0.0256464,263.65,263.6,0.02594472]
[1737744242188,3.7921,263.61,263.6,0.02594472]
[1737744242894,3.7919,263.63,263.6,0.02594472]
[1737744243096,0.0256464,263.65,263.6,0.02594472]
[1737744244495,0.66559695,263.77,263.6,0.02594472]
[1737744244694,2.52,263.8,263.6,2.4476]
[1737744244890,0.66569406,263.79,263.6,2.4476]
[1737744245096,3.7895,263.8,263.74,3.7902]
[1737744245501,44.19064217,263.81,263.74,3.7902]
[1737744245698,3.7895,263.79,263.74,3.81745646]
[1737744248098,0.02099754,263.8,263.75,3.7901]
[1737744248403,0.02099754,263.8,263.74,0.02725646]
[1737744249003,14.35343591,263.9,263.83,3.7889]
[1737744249004,18.14143591,263.9,263.83,3.7889]
[1737744249197,18.14143591,263.9,263.75,1.252]
[1737744249198,0.66596101,263.89,263.75,1.252]
[1737744249801,0.66596101,263.89,263.8,3.7893]
[1737744250198,3.7883,263.88,263.82,0.02562186]
[1737744250397,16.87343591,263.9,263.82,0.02562186]
[1737744250703,0.6659201,263.89,263.82,0.02562186]
[1737744251203,3.7884,263.87,263.82,0.02562186]
[1737744251404,16.87343591,263.9,263.82,0.02562186]
[1737744251606,0.66575555,263.89,263.82,0.02562186]
[1737744252407,3.7886,263.86,263.82,0.02562186]
[1737744253006,16.87343591,263.9,263.82,0.02562186]
[1737744253204,3.7885,263.87,263.82,0.02562186]
[1737744253598,16.87343591,263.9,263.82,0.02562186]
[1737744253897,3.7889,263.84,263.82,0.02562186]
[1737744254604,16.87343591,263.9,263.82,0.02562186]
[1737744254906,3.7887,263.85,263.82,0.02562186]
[1737744255407,3.7884,263.87,263.82,0.02562186]
[1737744255609,14.35343591,263.9,263.82,0.02562186]
[1737744255905,0.66580096,263.89,263.82,0.02562186]
[1737744256101,2.52,263.92,263.82,0.02562186]
[1737744256307,0.66580738,263.91,263.75,1.252]
[1737744256502,3.7884,263.87,263.84,0.0259179]
[1737744258711,3.7887,263.85,263.84,0.0259179]
[1737744260804,14.35343591,263.87,263.84,0.0259179]
[1737744262108,3.7887,263.85,263.84,0.0259179]
[1737744263806,16.87343591,263.92,263.84,0.0259179]
[1737744264105,3.1856452,263.91,263.84,0.0259179]
[1737744264304,0.6656452,263.9,263.84,0.0259179]
[1737744264505,3.7884,263.87,263.84,0.0259179]
[1737744264910,16.87343591,263.92,263.84,0.0259179]
[1737744265108,0.66548217,263.91,263.84,0.0259179]
[1737744265609,3.7887,263.85,263.84,0.0259179]
[1737744265806,16.87343591,263.92,263.84,0.0259179]
[1737744266111,0.66536096,263.91,263.84,0.0259179]
[1737744266714,3.7882,263.89,263.84,0.0259179]
[1737744267115,16.87343591,263.92,263.84,0.0259179]
[1737744267315,0.66558539,263.91,263.84,0.0259179]
[1737744267916,0.66559729,263.9,263.84,0.0259179]
[1737744268216,8.9647703,263.87,263.84,0.0259179]
[1737744269114,3.7887,263.85,263.84,0.0259179]
[1737744273218,3.7882,263.88,263.84,0.0259179]
[1737744274019,3.7882,263.88,263.84,3.8147179]
[1737744276820,8.9647703,263.91,263.84,0.0259179]
[1737744277015,3.7884,263.87,263.84,0.0259179]
[1737744277522,8.9647703,263.91,263.84,0.0259179]
[1737744278523,3.7885,263.87,263.84,0.0259179]
[1737744279525,3.7879,263.9,263.84,0.0259179]
[1737744280226,8.9647703,263.95,263.84,0.0259179]
[1737744280429,11.4847703,263.95,263.78,2.6493]
[1737744280723,15.2720703,263.95,263.87,0.02767798]
[1737744281123,11.4847703,263.95,263.87,0.02767798]
[1737744281429,3.7877,263.92,263.87,3.81597798]
[1737744281820,11.4847703,263.95,263.87,0.02767798]
[1737744282115,0.66591481,263.94,263.87,0.02767798]
[1737744282422,3.7877,263.92,263.87,0.02767798]
[1737744282623,11.4847703,263.95,263.87,0.02767798]
[1737744283625,58.76378149,264.02,263.87,0.02767798]
[1737744283626,2.52,263.97,263.87,0.02767798]
[1737744284019,8.9647703,263.93,263.87,0.02767798]
[1737744284626,3.7881,263.89,263.87,0.02767798]
[1737744285827,11.4847703,263.97,263.87,0.02767798]
[1737744286327,3.7871,263.96,263.87,0.02767798]
[1737744287031,3.7871,263.96,263.91,3.7877]
[1737744287327,2.52,263.99,263.91,3.7877]
[1737744287528,3.7872,263.95,263.91,3.7877]
[1737744287726,3.7872,263.95,263.92,0.0276659]
[1737744289232,3.787,263.97,263.92,3.8152659]
[1737744289432,2.52,263.99,263.92,3.8152659]
[1737744289628,2.52,263.99,263.92,0.0276659]
[1737744290029,3.7872,263.96,263.92,0.0276659]
[1737744291131,3.7872,263.96,263.92,3.8152659]
[1737744291632,3.7872,263.96,263.92,0.0276659]
[1737744291828,3.7872,263.96,263.93,3.7875]
[1737744292131,3.7869,263.98,263.92,0.0276659]
[1737744292428,3.787,263.97,263.92,3.8151659]
[1737744292634,2.52,263.99,263.92,0.0276659]
[1737744292834,8.9647703,263.97,263.92,0.0276659]
[1737744293032,3.7874,263.94,263.92,0.0276659]
[1737744296233,8.9647703,263.97,263.92,0.0276659]
[1737744296434,2.52,263.98,263.95,3.7872]
[1737744296832,8.9647703,264.01,263.95,3.7872]
[1737744297433,3.7866,263.99,263.94,3.7873]
[1737744297634,3.7866,263.99,263.92,0.0276659]
[1737744298136,8.9647703,264.01,263.92,0.0276659]
[1737744298333,3.7865,264.0,263.92,0.0276659]
[1737744299733,3.7865,264.0,263.96,3.787]
[1737744300233,3.7864,264.01,263.97,3.7868]
[1737744300537,2.52,264.1,263.95,8.9647703]
[1737744300737,8.9647703,264.13,263.95,8.9647703]
[1737744300738,2.52,264.12,263.95,8.9647703]
[1737744300937,2.52,264.12,264.0,0.02416829]
[1737744301339,6.3048,264.12,264.0,0.02416829]
[1737744301641,41.67064217,264.16,264.0,0.02416829]
[1737744301842,44.19064217,264.16,264.0,3.95066829]
[1737744302038,44.19064217,264.16,264.05,0.02902348]
[1737744302039,41.67064217,264.16,264.05,0.02902348]
[1737744302733,11.4847703,264.17,264.05,0.02902348]
[1737744302734,3.7846,264.14,264.06,3.7855]
[1737744302938,11.4847703,264.17,264.05,0.02902348]
[1737744303340,0.66655869,264.16,264.05,0.02902348]
[1737744303643,8.9647703,264.13,264.05,0.02902348]
[1737744304043,11.4847703,264.17,264.05,0.02902348]
[1737744304443,3.7843,264.16,264.08,3.7853]
[1737744304647,3.7843,264.16,264.05,0.02902348]
[1737744304842,11.4847703,264.17,264.05,0.02902348]
[1737744305048,3.7844,264.15,264.08,3.7853]
[1737744305349,2.52,264.17,264.05,0.02902348]
[1737744305552,2.52,264.19,264.05,0.02902348]
[1737744305747,3.784,264.18,264.11,3.7849]
[1737744305946,8.9647703,264.21,264.04,8.9647703]
[1737744306143,8.9647703,264.21,264.12,0.02896196]
[1737744306348,41.68535213,264.32,264.15,3.7843]
[1737744306349,3.7834,264.22,264.15,3.7843]
[1737744306847,8.9647703,264.25,264.12,0.02896196]
[1737744307048,3.7838,264.19,264.12,0.02896196]
[1737744307848,2.52,264.24,264.12,0.02896196]
[1737744308152,3.784,264.18,264.12,3.81366196]
[1737744308949,3.7841,264.17,264.12,3.81366196]
[1737744309850,3.7844,264.15,264.12,0.02896196]
[1737744312255,3.7846,264.13,264.12,0.02896196]
[1737744313860,8.9647703,264.21,264.12,0.02896196]
[1737744314756,0.66512591,264.19,264.12,0.02896196]
[1737744315153,3.7846,264.13,264.12,0.02896196]
[1737744317558,3.7857,264.06,264.0,3.9265]
[1737744317757,8.9647703,264.13,264.02,3.7862]
[1737744318861,0.02509667,264.1,264.05,0.02518233]
[1737744319066,3.7856,264.06,264.05,0.02518233]
[1737744322660,2.52,264.08,264.05,0.02518233]
[1737744322862,3.7856,264.07,264.05,0.02518233]
[1737744323062,2.52,264.08,264.05,0.02518233]
[1737744324468,0.02509667,264.1,264.05,0.02518233]
[1737744324668,2.54509667,264.1,264.05,0.02518233]
[1737744324868,3.7856,264.06,264.05,0.02518233]
[1737744327061,3.7855,264.08,264.05,0.02518233]
[1737744327370,2.54509667,264.1,264.05,0.02518233]
[1737744327669,3.7856,264.06,264.05,0.02518233]
[1737744327866,2.54509667,264.1,264.05,0.02518233]
[1737744328066,3.7856,264.07,264.05,0.02518233]
[1737744328267,2.54509667,264.1,264.05,0.02518233]
[1737744328663,3.7856,264.06,264.05,0.02518233]
[1737744329067,3.7855,264.08,264.05,0.02518233]
[1737744329373,2.54509667,264.1,264.05,0.02518233]
[1737744329374,0.02509667,264.1,264.05,0.02518233]
[1737744329672,0.02509667,264.1,264.07,3.7855]
[1737744329972,0.02509667,264.1,264.05,0.02518233]
[1737744331276,0.02509667,264.1,264.09,3.7852]
[1737744332068,0.02509667,264.1,264.07,3.7854]
[1737744332272,0.02509667,264.1,264.05,0.02518233]
[1737744332675,3.7852,264.09,264.05,3.81098233]
[1737744332876,0.02509667,264.1,264.05,3.81098233]
[1737744333375,3.7854,264.08,264.05,0.02518233]
[1737744334374,3.7855,264.07,264.05,0.02518233]
[1737744334575,0.02509667,264.1,264.05,0.02518233]
[1737744334875,8.9647703,264.09,264.05,0.02518233]
[1737744335981,3.7856,264.06,264.05,0.02518233]
[1737744336180,8.9647703,264.09,264.05,0.02518233]
[1737744336579,3.7856,264.07,264.05,0.02518233]
[1737744338283,8.9647703,264.09,264.05,0.02518233]
[1737744338478,3.7856,264.06,264.05,0.02518233]
[1737744338879,8.9647703,264.09,263.93,1.2478]
[1737744339081,8.9647703,264.05,263.93,1.2478]
[1737744340081,8.9647703,264.05,263.96,3.81244301]
[1737744340082,3.7865,264.01,263.96,3.81244301]
[1737744340273,0.02753025,264.02,263.96,0.02544301]
[1737744340773,3.7869,263.97,263.96,0.02544301]
[1737744345485,3.7866,264.0,263.96,0.02544301]
[1737744345781,8.9647703,264.01,263.96,0.02544301]
[1737744346776,3.7866,264.0,263.96,0.02544301]
[1737744347174,0.02753025,264.02,263.96,0.02544301]
[1737744348080,0.02753025,264.02,263.97,3.7868]
[1737744348383,0.02753025,264.02,263.96,0.02544301]
[1737744349080,3.81373025,264.02,263.98,3.7868]
[1737744349277,3.81373025,264.02,263.96,0.02544301]
[1737744349582,8.9647703,264.01,263.96,0.02544301]
[1737744349978,8.9647703,263.97,263.96,0.02544301]
[1737744350185,8.9647703,263.97,263.88,1.2668]
[1737744350582,8.9647703,263.97,263.84,2.5014]
[1737744351376,0.02440655,263.93,263.88,0.02474119]
[1737744351884,3.7878,263.92,263.88,0.02474119]
[1737744352185,8.98917685,263.93,263.88,0.02474119]
[1737744352484,3.7879,263.9,263.88,0.02474119]
[1737744352786,8.98917685,263.93,263.88,0.02474119]
[1737744354978,3.7881,263.9,263.88,0.02474119]
[1737744356286,3.7881,263.89,263.88,0.02474119]
[1737744358890,6.3079,263.91,263.88,0.02474119]
[1737744359193,2.52,263.91,263.88,0.02474119]
[1737744359381,0.02440655,263.93,263.88,0.02474119]
[1737744360788,0.02440655,263.93,263.9,3.7878]
[1737744360984,0.02440655,263.93,263.88,0.02474119]
[1737744362093,0.02440655,263.93,263.9,3.7879]
[1737744362286,0.02440655,263.93,263.88,0.02474119]
[1737744362890,0.02440655,263.93,263.9,3.7878]